[Event "*** MasterClass Titled Tuesday Blitz"]
[Site "Chess.com"]
[Date "2017.08.01"]
[Round "1"]
[White "Cryptochess"]
[Black "chesswooog"]
[Result "0-1"]
[WhiteElo "2467"]
[BlackElo "2232"]
[TimeControl "180+2"]
[EndTime "13:03:41 PDT"]
[Termination "chesswooog won by resignation"]

1. e4 {[%clk 0:02:57]} 1... c5 {[%clk 0:03:00.2]} 2. Nf3 {[%clk 0:02:57.9]} 2...
d6 {[%clk 0:02:59.2]} 3. d4 {[%clk 0:02:58.8]} 3... cxd4 {[%clk 0:03:00.2]} 4.
Nxd4 {[%clk 0:03:00.2]} 4... Nf6 {[%clk 0:03:01.9]} 5. Nc3 {[%clk 0:03:01.4]}
5... g6 {[%clk 0:03:03.2]} 6. Be3 {[%clk 0:03:01.4]} 6... Bg7 {[%clk 0:03:04.6]}
7. f3 {[%clk 0:03:01.6]} 7... Nc6 {[%clk 0:03:05.7]} 8. Bc4 {[%clk 0:03:02.5]}
8... O-O {[%clk 0:03:06.6]} 9. Qd2 {[%clk 0:03:03.9]} 9... Bd7 {[%clk
0:03:07.7]} 10. O-O-O {[%clk 0:03:04.5]} 10... Rc8 {[%clk 0:03:09.3]} 11. Bb3
{[%clk 0:03:05.4]} 11... Nxd4 {[%clk 0:03:10.5]} 12. Bxd4 {[%clk 0:03:06.1]}
12... b5 {[%clk 0:03:12.4]} 13. h4 {[%clk 0:03:05.9]} 13... a5 {[%clk
0:03:12.1]} 14. Nd5 {[%clk 0:02:27.6]} 14... Nxd5 {[%clk 0:02:46.3]} 15. Bxg7
{[%clk 0:02:21.8]} 15... Kxg7 {[%clk 0:02:46.6]} 16. Bxd5 {[%clk 0:02:17.4]}
16... e6 {[%clk 0:02:35]} 17. Bb3 {[%clk 0:02:11.6]} 17... a4 {[%clk 0:02:35.1]}
18. Qxd6 {[%clk 0:02:11.5]} 18... axb3 {[%clk 0:02:34.6]} 19. Qxd7 {[%clk
0:02:11.6]} 19... bxa2 {[%clk 0:02:31.4]} 20. Qa7 {[%clk 0:01:43.1]} 20... Qc7
{[%clk 0:02:22.3]} 0-1

[Event "*** MasterClass Titled Tuesday Blitz"]
[Site "Chess.com"]
[Date "2017.08.01"]
[Round "1"]
[White "IvaVidenova"]
[Black "gui_borba"]
[Result "1-0"]
[WhiteElo "2445"]
[BlackElo "2117"]
[TimeControl "180+2"]
[EndTime "13:03:49 PDT"]
[Termination "IvaVidenova won by resignation"]

1. e4 {[%clk 0:03:01.9]} 1... c6 {[%clk 0:02:58.9]} 2. d4 {[%clk 0:03:02.2]}
2... d5 {[%clk 0:03:00.1]} 3. Nc3 {[%clk 0:03:02.9]} 3... dxe4 {[%clk 0:02:59]}
4. Nxe4 {[%clk 0:03:04.8]} 4... Nf6 {[%clk 0:03:00.3]} 5. Nxf6+ {[%clk
0:03:05.2]} 5... gxf6 {[%clk 0:03:00.8]} 6. Nf3 {[%clk 0:03:06]} 6... Bg4 {[%clk
0:03:01.5]} 7. Be2 {[%clk 0:02:40]} 7... Qc7 {[%clk 0:03:02.1]} 8. c4 {[%clk
0:02:36.5]} 8... Nd7 {[%clk 0:03:02.4]} 9. O-O {[%clk 0:02:31.1]} 9... e6 {[%clk
0:03:01.7]} 10. Nh4 {[%clk 0:02:30.8]} 10... Bxe2 {[%clk 0:03:01.7]} 11. Qxe2
{[%clk 0:02:32.7]} 11... O-O-O {[%clk 0:03:02.3]} 12. Be3 {[%clk 0:02:24.1]}
12... Bg7 {[%clk 0:02:59]} 13. Rfd1 {[%clk 0:02:22.4]} 13... f5 {[%clk
0:02:43.6]} 14. Rac1 {[%clk 0:02:21.2]} 14... c5 {[%clk 0:02:41.2]} 15. d5
{[%clk 0:02:15.5]} 15... Ne5 {[%clk 0:02:34.9]} 16. Bf4 {[%clk 0:02:11.2]} 16...
Bf6 {[%clk 0:02:25.4]} 17. Re1 {[%clk 0:02:08.8]} 17... Bxh4 {[%clk 0:02:11.8]}
18. Bxe5 {[%clk 0:02:09.6]} 18... Qa5 {[%clk 0:01:58.4]} 19. Bxh8 {[%clk
0:02:05.6]} 19... Rxh8 {[%clk 0:02:00.3]} 20. g3 {[%clk 0:02:05.1]} 20... Bf6
{[%clk 0:01:58.1]} 21. dxe6 {[%clk 0:02:06.1]} 21... Re8 {[%clk 0:01:58]} 22.
exf7 {[%clk 0:02:02.4]} 1-0

[Event "*** MasterClass Titled Tuesday Blitz"]
[Site "Chess.com"]
[Date "2017.08.01"]
[Round "1"]
[White "Saitama_Hero"]
[Black "FMVolodymyrSakun"]
[Result "0-1"]
[WhiteElo "2211"]
[BlackElo "2502"]
[TimeControl "180+2"]
[EndTime "13:04:30 PDT"]
[Termination "FMVolodymyrSakun won by resignation"]

1. d4 {[%clk 0:03:01.9]} 1... Nf6 {[%clk 0:03:00.5]} 2. c4 {[%clk 0:03:01]} 2...
g6 {[%clk 0:03:01.6]} 3. Nc3 {[%clk 0:03:02.6]} 3... Bg7 {[%clk 0:03:02.4]} 4.
e4 {[%clk 0:03:03.1]} 4... O-O {[%clk 0:03:03.4]} 5. Be2 {[%clk 0:03:04.8]} 5...
d6 {[%clk 0:03:04.5]} 6. Nf3 {[%clk 0:03:05.7]} 6... e5 {[%clk 0:03:05.4]} 7.
O-O {[%clk 0:03:07.5]} 7... Nc6 {[%clk 0:03:05.8]} 8. d5 {[%clk 0:03:09]} 8...
Ne7 {[%clk 0:03:06.6]} 9. b4 {[%clk 0:03:10.9]} 9... a5 {[%clk 0:03:06.5]} 10.
bxa5 {[%clk 0:03:11.2]} 10... Rxa5 {[%clk 0:03:06]} 11. a4 {[%clk 0:03:12.3]}
11... Nd7 {[%clk 0:03:01.5]} 12. Ba3 {[%clk 0:03:13.5]} 12... Nc5 {[%clk
0:02:58.4]} 13. Bb4 {[%clk 0:03:12.7]} 13... Ra8 {[%clk 0:02:59.5]} 14. a5
{[%clk 0:03:13.1]} 14... f5 {[%clk 0:02:53.5]} 15. Nd2 {[%clk 0:03:13.9]} 15...
Nxe4 {[%clk 0:02:43.8]} 16. Ndxe4 {[%clk 0:03:13.2]} 16... fxe4 {[%clk
0:02:44.8]} 17. Nxe4 {[%clk 0:03:15.1]} 17... Nf5 {[%clk 0:02:42]} 18. c5 {[%clk
0:03:14.4]} 18... Qh4 {[%clk 0:02:39]} 19. Bd3 {[%clk 0:02:54.7]} 19... Bd7
{[%clk 0:02:40]} 20. cxd6 {[%clk 0:02:54.1]} 20... cxd6 {[%clk 0:02:39.8]} 21.
g3 {[%clk 0:02:51.2]} 21... Qh3 {[%clk 0:02:37.4]} 22. Nxd6 {[%clk 0:02:49.1]}
22... Nh4 {[%clk 0:02:31.8]} 23. gxh4 {[%clk 0:02:41.8]} 23... Rf4 {[%clk
0:02:32]} 24. Be4 {[%clk 0:02:14.3]} 24... Rxh4 {[%clk 0:02:12]} 25. Re1 {[%clk
0:02:14.8]} 25... Qxh2+ {[%clk 0:02:13.1]} 26. Kf1 {[%clk 0:02:15.3]} 26... Bh3+
{[%clk 0:02:14.1]} 27. Ke2 {[%clk 0:02:14.3]} 27... Bg4+ {[%clk 0:02:15.2]} 28.
Bf3 {[%clk 0:02:00.7]} 28... Bxf3+ {[%clk 0:02:11.3]} 29. Kxf3 {[%clk
0:02:02.6]} 29... Rf8+ {[%clk 0:02:10.4]} 30. Ke3 {[%clk 0:02:00.4]} 30... Qxf2+
{[%clk 0:02:09]} 31. Kd3 {[%clk 0:02:01.8]} 31... Rd4+ {[%clk 0:02:07.1]} 32.
Kc3 {[%clk 0:02:01.9]} 32... Rf3+ {[%clk 0:02:07.9]} 0-1

[Event "*** MasterClass Titled Tuesday Blitz"]
[Site "Chess.com"]
[Date "2017.08.01"]
[Round "1"]
[White "vellottiwizard"]
[Black "Pudor"]
[Result "1-0"]
[WhiteElo "2519"]
[BlackElo "2227"]
[TimeControl "180+2"]
[EndTime "13:04:37 PDT"]
[Termination "vellottiwizard won by resignation"]

1. e4 {[%clk 0:02:55.8]} 1... c5 {[%clk 0:02:57.4]} 2. Nf3 {[%clk 0:02:55.9]}
2... Nc6 {[%clk 0:02:57.3]} 3. d4 {[%clk 0:02:57.4]} 3... cxd4 {[%clk
0:02:54.2]} 4. Nxd4 {[%clk 0:02:59.3]} 4... Qc7 {[%clk 0:02:55.3]} 5. Nc3 {[%clk
0:02:57]} 5... e6 {[%clk 0:02:55.5]} 6. Be2 {[%clk 0:02:55.1]} 6... a6 {[%clk
0:02:55.3]} 7. O-O {[%clk 0:02:55.9]} 7... Nf6 {[%clk 0:02:53.6]} 8. Be3 {[%clk
0:02:56.5]} 8... Be7 {[%clk 0:02:52.8]} 9. f4 {[%clk 0:02:57.1]} 9... d6 {[%clk
0:02:52.8]} 10. Nb3 {[%clk 0:02:57.6]} 10... O-O {[%clk 0:02:52.2]} 11. a4
{[%clk 0:02:58.4]} 11... Re8 {[%clk 0:02:48.6]} 12. g4 {[%clk 0:02:58.4]} 12...
b6 {[%clk 0:02:37.1]} 13. g5 {[%clk 0:02:27.8]} 13... Nd7 {[%clk 0:02:31.2]} 14.
Qe1 {[%clk 0:02:29.3]} 14... Bb7 {[%clk 0:02:30.9]} 15. Qg3 {[%clk 0:02:26.4]}
15... Nb4 {[%clk 0:02:22.2]} 16. Rac1 {[%clk 0:02:26.9]} 16... Rac8 {[%clk
0:02:19]} 17. f5 {[%clk 0:02:20.7]} 17... Ne5 {[%clk 0:02:16.5]} 18. Nd4 {[%clk
0:02:16]} 18... Bf8 {[%clk 0:02:13.8]} 19. Rf2 {[%clk 0:02:01.3]} 19... Nc4
{[%clk 0:01:57.6]} 20. Bxc4 {[%clk 0:02:00.9]} 20... Qxc4 {[%clk 0:01:57.3]} 21.
g6 {[%clk 0:02:01.1]} 21... e5 {[%clk 0:01:52.6]} 22. gxf7+ {[%clk 0:01:58.4]}
22... Kxf7 {[%clk 0:01:47.8]} 23. Ne6 {[%clk 0:02:00.1]} 23... Bxe4 {[%clk
0:01:46.5]} 24. Nxe4 {[%clk 0:01:59.7]} 24... h6 {[%clk 0:01:36.7]} 25. Qg6+
{[%clk 0:01:59.3]} 25... Kg8 {[%clk 0:01:36.3]} 26. Nf6+ {[%clk 0:01:59.7]} 1-0

[Event "*** MasterClass Titled Tuesday Blitz"]
[Site "Chess.com"]
[Date "2017.08.01"]
[Round "1"]
[White "DrHolmes13"]
[Black "Shtembuliak"]
[Result "1-0"]
[WhiteElo "2370"]
[BlackElo "2649"]
[TimeControl "180+2"]
[EndTime "13:04:48 PDT"]
[Termination "DrHolmes13 won by checkmate"]

1. d4 {[%clk 0:03:01.9]} 1... Nf6 {[%clk 0:03:00.6]} 2. c4 {[%clk 0:03:02.8]}
2... d6 {[%clk 0:03:01.8]} 3. Nc3 {[%clk 0:03:02.7]} 3... Bf5 {[%clk 0:03:01.4]}
4. f3 {[%clk 0:02:59.8]} 4... e5 {[%clk 0:03:02.1]} 5. d5 {[%clk 0:03:00.8]}
5... e4 {[%clk 0:03:03.1]} 6. g4 {[%clk 0:03:01]} 6... Bg6 {[%clk 0:03:04.2]} 7.
g5 {[%clk 0:02:57.2]} 7... Nh5 {[%clk 0:02:57.3]} 8. fxe4 {[%clk 0:02:51.6]}
8... Nd7 {[%clk 0:02:57.2]} 9. Nf3 {[%clk 0:02:49.6]} 9... a6 {[%clk 0:02:55.9]}
10. Bh3 {[%clk 0:02:42.7]} 10... h6 {[%clk 0:02:51.3]} 11. gxh6 {[%clk
0:02:36.1]} 11... Ne5 {[%clk 0:02:49.2]} 12. O-O {[%clk 0:02:14.3]} 12... Qe7
{[%clk 0:02:08.5]} 13. Qa4+ {[%clk 0:02:01.5]} 13... Kd8 {[%clk 0:02:09.6]} 14.
Nxe5 {[%clk 0:01:54.8]} 14... dxe5 {[%clk 0:02:04.1]} 15. d6 {[%clk 0:01:54.1]}
15... Qe8 {[%clk 0:01:43.7]} 16. dxc7+ {[%clk 0:01:18.9]} 16... Kxc7 {[%clk
0:01:44.4]} 17. Nd5+ {[%clk 0:01:20]} 17... Kd6 {[%clk 0:01:44.2]} 18. c5+
{[%clk 0:01:11.3]} 18... Kxc5 {[%clk 0:01:44.1]} 19. Qb4+ {[%clk 0:01:05.5]}
19... Kc6 {[%clk 0:01:43.2]} 20. Qb6# {[%clk 0:01:06.1]} 1-0

[Event "*** MasterClass Titled Tuesday Blitz"]
[Site "Chess.com"]
[Date "2017.08.01"]
[Round "1"]
[White "ruvat"]
[Black "Marcus_Harvey"]
[Result "0-1"]
[WhiteElo "2295"]
[BlackElo "2586"]
[TimeControl "180+2"]
[EndTime "13:05:50 PDT"]
[Termination "Marcus_Harvey won by resignation"]

1. d4 {[%clk 0:02:58.8]} 1... e6 {[%clk 0:03:01.3]} 2. c4 {[%clk 0:02:59.6]}
2... f5 {[%clk 0:03:02.5]} 3. Nf3 {[%clk 0:03:00.6]} 3... Nf6 {[%clk 0:03:03.8]}
4. g3 {[%clk 0:03:01.8]} 4... Be7 {[%clk 0:03:05]} 5. Bg2 {[%clk 0:03:03.1]}
5... O-O {[%clk 0:03:06.7]} 6. O-O {[%clk 0:03:04.2]} 6... d6 {[%clk 0:03:08.4]}
7. Nc3 {[%clk 0:03:04.7]} 7... a5 {[%clk 0:03:09.7]} 8. b3 {[%clk 0:03:02.8]}
8... Qe8 {[%clk 0:03:10.1]} 9. Bb2 {[%clk 0:03:00.9]} 9... Qh5 {[%clk
0:03:11.1]} 10. Ne1 {[%clk 0:02:41.9]} 10... Na6 {[%clk 0:03:10.2]} 11. e4
{[%clk 0:02:38.3]} 11... Qxd1 {[%clk 0:02:58.1]} 12. Rxd1 {[%clk 0:02:39.3]}
12... Nxe4 {[%clk 0:02:58.5]} 13. Nxe4 {[%clk 0:02:39.6]} 13... fxe4 {[%clk
0:02:59.8]} 14. Bxe4 {[%clk 0:02:40.7]} 14... c6 {[%clk 0:02:56.1]} 15. Bb1
{[%clk 0:02:35.1]} 15... Bf6 {[%clk 0:02:51.7]} 16. Nd3 {[%clk 0:02:31.3]} 16...
Bd7 {[%clk 0:02:47.7]} 17. Rfe1 {[%clk 0:02:16.9]} 17... b5 {[%clk 0:02:42.3]}
18. cxb5 {[%clk 0:01:50]} 18... cxb5 {[%clk 0:02:41.7]} 19. Nf4 {[%clk
0:01:51.2]} 19... Rfe8 {[%clk 0:02:41]} 20. Nh5 {[%clk 0:01:50.9]} 20... Be7
{[%clk 0:02:24.1]} 21. Nf4 {[%clk 0:01:51.3]} 21... Bg5 {[%clk 0:02:20.9]} 22.
Nd3 {[%clk 0:01:46]} 22... Rac8 {[%clk 0:02:20.2]} 23. h4 {[%clk 0:01:45.3]}
23... Bf6 {[%clk 0:02:20.4]} 24. Nf4 {[%clk 0:01:44]} 24... g6 {[%clk
0:02:17.3]} 25. a3 {[%clk 0:01:38.4]} 25... Nc7 {[%clk 0:02:17.2]} 26. Rc1
{[%clk 0:01:36.9]} 26... Nd5 {[%clk 0:02:13.9]} 27. Nxd5 {[%clk 0:01:34.8]}
27... exd5 {[%clk 0:02:15.2]} 28. Rxc8 {[%clk 0:01:29.9]} 28... Rxc8 {[%clk
0:02:15.2]} 29. f3 {[%clk 0:01:27.4]} 29... a4 {[%clk 0:02:14.1]} 30. bxa4
{[%clk 0:01:24.6]} 30... bxa4 {[%clk 0:02:14.4]} 31. Bd3 {[%clk 0:01:25.5]}
31... Kf7 {[%clk 0:02:13.4]} 32. Kf2 {[%clk 0:01:23.4]} 32... Bf5 {[%clk
0:02:12]} 33. Bxf5 {[%clk 0:01:17]} 33... gxf5 {[%clk 0:02:13.9]} 34. Re2 {[%clk
0:01:18.3]} 34... Rc4 {[%clk 0:02:11.1]} 35. Rd2 {[%clk 0:01:17.9]} 35... f4
{[%clk 0:02:12.6]} 36. h5 {[%clk 0:01:16.8]} 36... fxg3+ {[%clk 0:02:12.6]} 37.
Kxg3 {[%clk 0:01:18.1]} 37... Rc8 {[%clk 0:02:09.8]} 38. Re2 {[%clk 0:01:10.4]}
38... Rb8 {[%clk 0:02:09.5]} 39. Kf2 {[%clk 0:01:09.3]} 39... Rxb2 {[%clk
0:02:09.1]} 0-1

[Event "*** MasterClass Titled Tuesday Blitz"]
[Site "Chess.com"]
[Date "2017.08.01"]
[Round "1"]
[White "SipkeErnst"]
[Black "Blitzking4444"]
[Result "1-0"]
[WhiteElo "2471"]
[BlackElo "2152"]
[TimeControl "180+2"]
[EndTime "13:06:01 PDT"]
[Termination "SipkeErnst won on time"]

1. d4 {[%clk 0:02:59.7]} 1... Nf6 {[%clk 0:03:01]} 2. c4 {[%clk 0:02:50.5]} 2...
e6 {[%clk 0:03:02.1]} 3. Nc3 {[%clk 0:02:50.8]} 3... Bb4 {[%clk 0:03:02.5]} 4.
e3 {[%clk 0:02:51.2]} 4... O-O {[%clk 0:03:02.7]} 5. Bd3 {[%clk 0:02:51.3]} 5...
d5 {[%clk 0:03:03.6]} 6. Nf3 {[%clk 0:02:51.4]} 6... c5 {[%clk 0:02:59.8]} 7.
O-O {[%clk 0:02:52]} 7... dxc4 {[%clk 0:03:00.5]} 8. Bxc4 {[%clk 0:02:52.6]}
8... Nbd7 {[%clk 0:03:01.8]} 9. Qe2 {[%clk 0:02:52]} 9... cxd4 {[%clk
0:03:01.1]} 10. exd4 {[%clk 0:02:53.1]} 10... Bxc3 {[%clk 0:03:02.5]} 11. bxc3
{[%clk 0:02:53.6]} 11... b6 {[%clk 0:03:04.1]} 12. Bb2 {[%clk 0:02:53.3]} 12...
Bb7 {[%clk 0:03:04.8]} 13. Bd3 {[%clk 0:02:51.5]} 13... Re8 {[%clk 0:02:41.4]}
14. Rfe1 {[%clk 0:02:28.8]} 14... Qc7 {[%clk 0:02:13.9]} 15. Rac1 {[%clk
0:02:21.4]} 15... h6 {[%clk 0:02:04.8]} 16. c4 {[%clk 0:02:10.1]} 16... Ng4
{[%clk 0:01:59.4]} 17. h3 {[%clk 0:02:06.2]} 17... Bxf3 {[%clk 0:01:07.6]} 18.
Qxf3 {[%clk 0:02:03.8]} 18... Qh2+ {[%clk 0:01:02]} 19. Kf1 {[%clk 0:02:04]}
19... e5 {[%clk 0:00:24.4]} 20. hxg4 {[%clk 0:01:59.1]} 20... e4 {[%clk
0:00:07.7]} 21. Rxe4 {[%clk 0:01:45.6]} 21... Rxe4 {[%clk 0:00:08.3]} 22. Qxe4
{[%clk 0:01:43.3]} 1-0

[Event "*** MasterClass Titled Tuesday Blitz"]
[Site "Chess.com"]
[Date "2017.08.01"]
[Round "1"]
[White "AndrewMcStone"]
[Black "BigMak2500"]
[Result "0-1"]
[WhiteElo "2074"]
[BlackElo "2419"]
[TimeControl "180+2"]
[EndTime "13:06:12 PDT"]
[Termination "BigMak2500 won by resignation"]

1. d4 {[%clk 0:03:01.8]} 1... Nf6 {[%clk 0:02:57.2]} 2. c4 {[%clk 0:03:02.8]}
2... e6 {[%clk 0:02:58.1]} 3. Nc3 {[%clk 0:03:03.7]} 3... Bb4 {[%clk 0:02:58]}
4. f3 {[%clk 0:03:04.2]} 4... O-O {[%clk 0:02:57.3]} 5. a3 {[%clk 0:03:02.6]}
5... Bxc3+ {[%clk 0:02:54.4]} 6. bxc3 {[%clk 0:03:04.5]} 6... Nh5 {[%clk
0:02:56.3]} 7. Nh3 {[%clk 0:02:59.7]} 7... f5 {[%clk 0:02:55.4]} 8. e3 {[%clk
0:02:56.1]} 8... d6 {[%clk 0:02:54.8]} 9. Bd3 {[%clk 0:02:25]} 9... c5 {[%clk
0:02:55.1]} 10. O-O {[%clk 0:02:22.1]} 10... Nc6 {[%clk 0:02:54.4]} 11. g4
{[%clk 0:01:49.1]} 11... Qh4 {[%clk 0:02:47.1]} 12. Nf2 {[%clk 0:01:02.9]} 12...
fxg4 {[%clk 0:02:43.8]} 13. fxg4 {[%clk 0:01:02.5]} 13... Ng3 {[%clk 0:02:17.6]}
14. hxg3 {[%clk 0:00:27.2]} 14... Qxg3+ {[%clk 0:02:19.5]} 15. Kh1 {[%clk
0:00:28.1]} 15... Rxf2 {[%clk 0:02:19.9]} 16. Rxf2 {[%clk 0:00:21]} 16... Qxf2
{[%clk 0:02:21.8]} 17. Bd2 {[%clk 0:00:04.2]} 17... Bd7 {[%clk 0:02:10.5]} 18.
Qc2 {[%clk 0:00:04.6]} 18... Qh4+ {[%clk 0:02:03.4]} 19. Kg1 {[%clk 0:00:05.3]}
19... Qxg4+ {[%clk 0:02:05.3]} 20. Kh2 {[%clk 0:00:06.4]} 20... Qh4+ {[%clk
0:02:01.6]} 21. Kg2 {[%clk 0:00:07.3]} 21... e5 {[%clk 0:01:59.1]} 22. Rh1
{[%clk 0:00:07.1]} 22... Qg4+ {[%clk 0:01:56.1]} 23. Kf2 {[%clk 0:00:07.8]}
23... Rf8+ {[%clk 0:01:55.7]} 24. Ke1 {[%clk 0:00:08.5]} 24... Qg3+ {[%clk
0:01:54.9]} 25. Kd1 {[%clk 0:00:09.4]} 25... Qf3+ {[%clk 0:01:53.9]} 26. Kc1
{[%clk 0:00:09.7]} 26... Qxh1+ {[%clk 0:01:55.8]} 27. Kb2 {[%clk 0:00:10.6]}
27... cxd4 {[%clk 0:01:54.2]} 0-1

[Event "*** MasterClass Titled Tuesday Blitz"]
[Site "Chess.com"]
[Date "2017.08.01"]
[Round "1"]
[White "attack2mateU"]
[Black "TomasKapitanchuk"]
[Result "1-0"]
[WhiteElo "2499"]
[BlackElo "2201"]
[TimeControl "180+2"]
[EndTime "13:06:14 PDT"]
[Termination "attack2mateU won by resignation"]

1. e4 {[%clk 0:03:01.9]} 1... c5 {[%clk 0:03:00.3]} 2. Nf3 {[%clk 0:03:03.4]}
2... e6 {[%clk 0:03:01.6]} 3. d4 {[%clk 0:03:04.9]} 3... cxd4 {[%clk 0:03:03.5]}
4. Nxd4 {[%clk 0:03:06.3]} 4... Nc6 {[%clk 0:03:05.4]} 5. Nc3 {[%clk 0:03:07.7]}
5... Qc7 {[%clk 0:03:06.5]} 6. Be3 {[%clk 0:03:08.7]} 6... a6 {[%clk 0:03:07.4]}
7. Qd2 {[%clk 0:03:10.1]} 7... Nf6 {[%clk 0:03:06.8]} 8. O-O-O {[%clk
0:03:11.7]} 8... Be7 {[%clk 0:03:07.8]} 9. f3 {[%clk 0:03:09.8]} 9... d6 {[%clk
0:03:07.2]} 10. g4 {[%clk 0:03:09.8]} 10... Nxd4 {[%clk 0:03:06.6]} 11. Bxd4
{[%clk 0:03:09.4]} 11... b5 {[%clk 0:03:08.5]} 12. g5 {[%clk 0:03:06.8]} 12...
Nh5 {[%clk 0:03:09.4]} 13. Rg1 {[%clk 0:03:00.8]} 13... Bb7 {[%clk 0:03:08.5]}
14. Kb1 {[%clk 0:03:00.2]} 14... Rc8 {[%clk 0:03:07.8]} 15. Bh3 {[%clk
0:02:51.3]} 15... Rg8 {[%clk 0:02:31.7]} 16. Bg4 {[%clk 0:02:27.7]} 16... g6
{[%clk 0:02:32.6]} 17. a3 {[%clk 0:02:11.4]} 17... Qc4 {[%clk 0:02:29.4]} 18. f4
{[%clk 0:02:03.8]} 18... Qc6 {[%clk 0:01:58.3]} 19. f5 {[%clk 0:02:00.7]} 19...
e5 {[%clk 0:01:52.5]} 20. Be3 {[%clk 0:02:00.8]} 20... Rb8 {[%clk 0:01:48.6]}
21. Nd5 {[%clk 0:01:52.3]} 21... Bd8 {[%clk 0:01:49.5]} 22. Bxh5 {[%clk
0:01:23.9]} 22... gxh5 {[%clk 0:01:50.3]} 23. Qe2 {[%clk 0:01:25.6]} 23... Qc4
{[%clk 0:01:47.7]} 24. Qxh5 {[%clk 0:01:26.2]} 24... Qxe4 {[%clk 0:01:45.4]} 25.
Qxh7 {[%clk 0:01:26]} 25... Bxd5 {[%clk 0:01:40.8]} 26. Qxg8+ {[%clk 0:01:26.1]}
26... Kd7 {[%clk 0:01:41.7]} 27. g6 {[%clk 0:01:18.7]} 27... Rc8 {[%clk
0:01:36]} 28. gxf7 {[%clk 0:01:07.6]} 28... Qxc2+ {[%clk 0:01:33.1]} 29. Ka1
{[%clk 0:01:07.7]} 29... Be7 {[%clk 0:01:26]} 30. f8=N+ {[%clk 0:01:02.5]} 30...
Rxf8 {[%clk 0:01:19.4]} 31. Qxd5 {[%clk 0:01:04.4]} 1-0

[Event "*** MasterClass Titled Tuesday Blitz"]
[Site "Chess.com"]
[Date "2017.08.01"]
[Round "1"]
[White "scrapnel"]
[Black "Cocovitsch007"]
[Result "1-0"]
[WhiteElo "2510"]
[BlackElo "2223"]
[TimeControl "180+2"]
[EndTime "13:06:19 PDT"]
[Termination "scrapnel won by resignation"]

1. d4 {[%clk 0:03:01.9]} 1... Nf6 {[%clk 0:02:58.5]} 2. Nf3 {[%clk 0:03:02.3]}
2... g6 {[%clk 0:02:58.8]} 3. Bg5 {[%clk 0:03:02.1]} 3... Bg7 {[%clk 0:02:59.2]}
4. Nbd2 {[%clk 0:03:02.9]} 4... d5 {[%clk 0:02:59]} 5. e3 {[%clk 0:03:02.4]}
5... Bf5 {[%clk 0:02:59.7]} 6. c4 {[%clk 0:03:00.9]} 6... c6 {[%clk 0:02:58.5]}
7. Qb3 {[%clk 0:03:00.8]} 7... Qb6 {[%clk 0:02:58.8]} 8. c5 {[%clk 0:02:47]}
8... Qxb3 {[%clk 0:02:56.2]} 9. axb3 {[%clk 0:02:47.7]} 9... Nbd7 {[%clk
0:02:54.4]} 10. b4 {[%clk 0:02:48.5]} 10... O-O {[%clk 0:02:48.3]} 11. b5 {[%clk
0:02:48.6]} 11... Rfe8 {[%clk 0:02:44.3]} 12. b4 {[%clk 0:02:26.7]} 12... Ne4
{[%clk 0:02:34.2]} 13. Bf4 {[%clk 0:02:21]} 13... Nxd2 {[%clk 0:02:32.2]} 14.
Kxd2 {[%clk 0:02:19]} 14... Be4 {[%clk 0:02:32.8]} 15. bxc6 {[%clk 0:02:12]}
15... bxc6 {[%clk 0:02:33.3]} 16. Ba6 {[%clk 0:02:11.1]} 16... Bxf3 {[%clk
0:02:30]} 17. gxf3 {[%clk 0:02:11.6]} 17... e5 {[%clk 0:02:29.9]} 18. dxe5
{[%clk 0:02:09.9]} 18... Nxe5 {[%clk 0:02:30.3]} 19. Bxe5 {[%clk 0:01:50.6]}
19... Bxe5 {[%clk 0:02:29.5]} 20. Ra4 {[%clk 0:01:51.3]} 20... Rab8 {[%clk
0:02:04]} 21. f4 {[%clk 0:01:49]} 21... Bf6 {[%clk 0:02:01.9]} 22. Rc1 {[%clk
0:01:45.4]} 22... d4 {[%clk 0:02:02.2]} 23. b5 {[%clk 0:01:45.4]} 23... dxe3+
{[%clk 0:02:01.6]} 24. fxe3 {[%clk 0:01:45.2]} 24... cxb5 {[%clk 0:01:58.7]} 25.
Rb4 {[%clk 0:01:42.4]} 25... Kf8 {[%clk 0:01:09]} 26. c6 {[%clk 0:01:41.3]}
26... Re7 {[%clk 0:00:58.1]} 27. c7 {[%clk 0:01:38.2]} 27... Rd7+ {[%clk
0:00:53.6]} 28. Ke2 {[%clk 0:01:37.9]} 1-0

[Event "*** MasterClass Titled Tuesday Blitz"]
[Site "Chess.com"]
[Date "2017.08.01"]
[Round "1"]
[White "B-man"]
[Black "aa175"]
[Result "1-0"]
[WhiteElo "2390"]
[BlackElo "1850"]
[TimeControl "180+2"]
[EndTime "13:06:20 PDT"]
[Termination "B-man won by checkmate"]

1. e4 {[%clk 0:02:59.1]} 1... e5 {[%clk 0:02:56.5]} 2. Nc3 {[%clk 0:02:45.3]}
2... Nf6 {[%clk 0:02:34.8]} 3. Bc4 {[%clk 0:02:44]} 3... Nc6 {[%clk 0:02:31]} 4.
Nge2 {[%clk 0:02:11.2]} 4... Bc5 {[%clk 0:02:19.2]} 5. d3 {[%clk 0:02:08.4]}
5... h6 {[%clk 0:02:13.4]} 6. O-O {[%clk 0:02:03.8]} 6... d6 {[%clk 0:02:14.3]}
7. Na4 {[%clk 0:02:04.1]} 7... Bb6 {[%clk 0:02:01.2]} 8. Nxb6 {[%clk 0:01:54.6]}
8... axb6 {[%clk 0:02:03.1]} 9. f4 {[%clk 0:01:55.4]} 9... O-O {[%clk
0:02:02.7]} 10. a3 {[%clk 0:01:40.7]} 10... Nd7 {[%clk 0:01:34.6]} 11. Ng3
{[%clk 0:01:38.6]} 11... Nc5 {[%clk 0:01:27.3]} 12. f5 {[%clk 0:01:34]} 12...
Na5 {[%clk 0:00:37.6]} 13. Ba2 {[%clk 0:01:37.2]} 13... c6 {[%clk 0:00:27.1]}
14. b4 {[%clk 0:01:36.9]} 14... Na4 {[%clk 0:00:27.9]} 15. bxa5 {[%clk
0:01:35.1]} 15... bxa5 {[%clk 0:00:29]} 16. Qg4 {[%clk 0:01:25.7]} 16... Kh8
{[%clk 0:00:20.2]} 17. Nh5 {[%clk 0:01:25.9]} 17... g6 {[%clk 0:00:18.9]} 18.
Bxh6 {[%clk 0:01:19.3]} 18... gxh5 {[%clk 0:00:19.1]} 19. Qg7# {[%clk
0:01:23.9]} 1-0